[Event "Live Chess"]
[Site "Chess.com"]
[Date "2024.06.01"]
[Round "-"]
[White "jellhhggffhjjjjjj"]
[Black "Sweet-O"]
[Result "0-1"]
[WhiteElo "227"]
[BlackElo "1549"]
[TimeControl "300"]
[EndTime "13:59:13 PDT"]
[Termination "Sweet-O won by checkmate"]

1. b3 {[%clk 0:04:45.6]} 1... e5 {[%clk 0:04:58.2]} 2. Bb2 {[%clk 0:04:44.3]}
2... d5 {[%clk 0:04:58.1]} 3. d3 {[%clk 0:04:41.7]} 3... d4 {[%clk 0:04:57.6]}
4. Nd2 {[%clk 0:04:41.2]} 4... a5 {[%clk 0:04:56.7]} 5. e4 {[%clk 0:04:41]} 5...
a4 {[%clk 0:04:56.1]} 6. f4 {[%clk 0:04:36.8]} 6... Qh4+ {[%clk 0:04:53.1]} 7.
g3 {[%clk 0:04:34.3]} 7... Qf6 {[%clk 0:04:50.8]} 8. fxe5 {[%clk 0:04:19.4]}
8... Qxe5 {[%clk 0:04:50.7]} 9. Ngf3 {[%clk 0:04:18]} 9... Qf6 {[%clk
0:04:40.5]} 10. Bxd4 {[%clk 0:04:15.5]} 10... Qg6 {[%clk 0:04:36.6]} 11. Bg2
{[%clk 0:04:13.2]} 11... axb3 {[%clk 0:04:31.8]} 12. cxb3 {[%clk 0:04:11]} 12...
Bb4 {[%clk 0:04:27.8]} 13. Qc2 {[%clk 0:04:04.8]} 13... Nc6 {[%clk 0:04:20.7]}
14. Bc3 {[%clk 0:03:52.4]} 14... Bc5 {[%clk 0:04:15.4]} 15. d4 {[%clk
0:03:50.4]} 15... Bb6 {[%clk 0:04:13]} 16. a4 {[%clk 0:03:47.2]} 16... Nf6
{[%clk 0:03:50.7]} 17. Qb2 {[%clk 0:03:42.3]} 17... O-O {[%clk 0:03:48.4]} 18.
O-O {[%clk 0:03:38]} 18... Nxe4 {[%clk 0:03:46.9]} 19. Nxe4 {[%clk 0:03:34.1]}
19... Qxe4 {[%clk 0:03:46.8]} 20. Ne5 {[%clk 0:03:28.7]} 20... Qe3+ {[%clk
0:03:42.7]} 21. Kh1 {[%clk 0:03:23.5]} 21... Bxd4 {[%clk 0:03:35]} 22. Bxd4
{[%clk 0:03:20.8]} 22... Qxd4 {[%clk 0:03:32.7]} 23. Qxd4 {[%clk 0:03:12.7]}
23... Nxd4 {[%clk 0:03:32.6]} 24. Rad1 {[%clk 0:03:09.6]} 24... Nxb3 {[%clk
0:03:30.3]} 25. Rb1 {[%clk 0:03:05.2]} 25... Nc5 {[%clk 0:03:27]} 26. Rfc1
{[%clk 0:03:00.1]} 26... Bf5 {[%clk 0:03:12.9]} 27. Ra1 {[%clk 0:02:42.1]} 27...
Nb3 {[%clk 0:03:09.5]} 28. Rxc7 {[%clk 0:02:33.9]} 28... Nxa1 {[%clk 0:03:06]}
29. Bxb7 {[%clk 0:02:32.1]} 29... Rad8 {[%clk 0:02:58.2]} 30. Nc6 {[%clk
0:02:18.9]} 30... Rd1+ {[%clk 0:02:51.1]} 31. Kg2 {[%clk 0:02:16.9]} 31... Be4+
{[%clk 0:02:45.6]} 32. Kh3 {[%clk 0:02:10.5]} 32... Bxc6 {[%clk 0:02:44.1]} 33.
Bxc6 {[%clk 0:02:07.6]} 33... Rc1 {[%clk 0:02:36.9]} 34. a5 {[%clk 0:02:00.2]}
34... Nb3 {[%clk 0:02:33.3]} 35. a6 {[%clk 0:01:56.7]} 35... Na5 {[%clk
0:02:31.9]} 36. Bg2 {[%clk 0:01:52.8]} 36... Rxc7 {[%clk 0:02:29]} 37. Bb7
{[%clk 0:01:46.7]} 37... Nxb7 {[%clk 0:02:26]} 38. axb7 {[%clk 0:01:45.2]} 38...
Rxb7 {[%clk 0:02:25.5]} 39. Kg2 {[%clk 0:01:44.3]} 39... Rc8 {[%clk 0:02:21.6]}
40. Kh3 {[%clk 0:01:43.1]} 40... Rc6 {[%clk 0:02:18.9]} 41. Kg4 {[%clk
0:01:41.9]} 41... Rg6+ {[%clk 0:02:17.4]} 42. Kh3 {[%clk 0:01:40.9]} 42... Rb5
{[%clk 0:02:14.6]} 43. Kh4 {[%clk 0:01:39]} 43... Rh6+ {[%clk 0:02:10.8]} 44.
Kg4 {[%clk 0:01:35.7]} 44... Rb4+ {[%clk 0:02:09.5]} 45. Kf3 {[%clk 0:01:33.5]}
45... Rc6 {[%clk 0:02:05.4]} 46. Kg2 {[%clk 0:01:31.4]} 46... g5 {[%clk
0:02:01.3]} 47. Kh3 {[%clk 0:01:29.6]} 47... h5 {[%clk 0:01:57.1]} 48. Kg2
{[%clk 0:01:27.2]} 48... g4 {[%clk 0:01:56]} 49. h3 {[%clk 0:01:25.1]} 49...
Rc2+ {[%clk 0:01:54.3]} 50. Kg1 {[%clk 0:01:21]} 50... Rb1# {[%clk 0:01:53.1]}
0-1

[Event "Live Chess"]
[Site "Chess.com"]
[Date "2024.06.01"]
[Round "-"]
[White "kingside_rook"]
[Black "Duke_of_Bebington"]
[Result "0-1"]
[WhiteElo "1974"]
[BlackElo "1627"]
[TimeControl "300"]
[EndTime "13:59:43 PDT"]
[Termination "Duke_of_Bebington won by resignation"]

1. d4 {[%clk 0:04:58.2]} 1... d5 {[%clk 0:04:57.7]} 2. c4 {[%clk 0:04:56.8]}
2... c6 {[%clk 0:04:56.9]} 3. Nf3 {[%clk 0:04:55.2]} 3... Nf6 {[%clk 0:04:54.7]}
4. g3 {[%clk 0:04:54.8]} 4... Bf5 {[%clk 0:04:52.7]} 5. Bg2 {[%clk 0:04:54.2]}
5... e6 {[%clk 0:04:52.1]} 6. O-O {[%clk 0:04:53.8]} 6... dxc4 {[%clk
0:04:48.4]} 7. Nbd2 {[%clk 0:04:51.5]} 7... b5 {[%clk 0:04:46.7]} 8. a4 {[%clk
0:04:48]} 8... a6 {[%clk 0:04:30.2]} 9. b3 {[%clk 0:04:44.5]} 9... c3 {[%clk
0:04:15.2]} 10. Ne5 {[%clk 0:04:34.8]} 10... cxd2 {[%clk 0:04:10.3]} 11. Qxd2
{[%clk 0:04:34.7]} 11... Be4 {[%clk 0:03:57.5]} 12. f3 {[%clk 0:04:32.7]} 12...
Bd5 {[%clk 0:03:55.8]} 13. axb5 {[%clk 0:04:31.3]} 13... cxb5 {[%clk 0:03:50.6]}
14. e4 {[%clk 0:04:29.7]} 14... Bxb3 {[%clk 0:03:48.3]} 15. Qe3 {[%clk
0:04:24.3]} 15... Bc4 {[%clk 0:03:45.2]} 16. Rd1 {[%clk 0:04:22.5]} 16... Bb4
{[%clk 0:03:29.9]} 17. Nxc4 {[%clk 0:04:08.4]} 17... bxc4 {[%clk 0:03:28.7]} 18.
Bf1 {[%clk 0:04:07.8]} 18... c3 {[%clk 0:03:05.8]} 19. Bb5+ {[%clk 0:04:04.5]}
19... Nfd7 {[%clk 0:03:02.5]} 20. Ba4 {[%clk 0:03:59.5]} 20... O-O {[%clk
0:02:59.3]} 21. d5 {[%clk 0:03:54.5]} 21... Nb6 {[%clk 0:02:55.6]} 22. dxe6
{[%clk 0:03:50.1]} 22... Qc7 {[%clk 0:02:37.7]} 23. exf7+ {[%clk 0:03:41.7]}
23... Rxf7 {[%clk 0:02:34]} 24. Bb3 {[%clk 0:03:41.3]} 24... Bc5 {[%clk
0:02:30]} 25. Bxf7+ {[%clk 0:03:33.7]} 25... Kxf7 {[%clk 0:02:26.3]} 26. Kg2
{[%clk 0:03:31.1]} 26... Bxe3 {[%clk 0:02:24.7]} 27. Bxe3 {[%clk 0:03:31]} 27...
Nc6 {[%clk 0:02:20.5]} 28. Rdc1 {[%clk 0:03:27]} 28... Ne5 {[%clk 0:02:15.4]}
29. Rab1 {[%clk 0:03:23.4]} 29... Nbc4 {[%clk 0:02:12.4]} 30. Rxc3 {[%clk
0:03:21.7]} 30... Nxe3+ {[%clk 0:02:09.1]} 31. Rxe3 {[%clk 0:03:20.5]} 31...
Qc2+ {[%clk 0:02:07]} 0-1

[Event "Live Chess"]
[Site "Chess.com"]
[Date "2024.06.01"]
[Round "-"]
[White "StoreySniper"]
[Black "ProfPoisson"]
[Result "1-0"]
[WhiteElo "2535"]
[BlackElo "1284"]
[TimeControl "300"]
[EndTime "13:59:50 PDT"]
[Termination "StoreySniper won by checkmate"]

1. d4 {[%clk 0:04:57.3]} 1... e6 {[%clk 0:04:57.5]} 2. Nf3 {[%clk 0:04:56]} 2...
f5 {[%clk 0:04:55.6]} 3. g3 {[%clk 0:04:53.3]} 3... Nf6 {[%clk 0:04:55.1]} 4.
Bg2 {[%clk 0:04:52.8]} 4... Be7 {[%clk 0:04:53.5]} 5. O-O {[%clk 0:04:52.4]}
5... d6 {[%clk 0:04:52.5]} 6. c4 {[%clk 0:04:51.9]} 6... O-O {[%clk 0:04:51.3]}
7. Nc3 {[%clk 0:04:51.5]} 7... Ne4 {[%clk 0:04:48.8]} 8. Nd2 {[%clk 0:04:46.9]}
8... Nxc3 {[%clk 0:04:46.3]} 9. bxc3 {[%clk 0:04:45.8]} 9... Bf6 {[%clk
0:04:42.3]} 10. e4 {[%clk 0:04:42.8]} 10... fxe4 {[%clk 0:04:38.9]} 11. Nxe4
{[%clk 0:04:41.7]} 11... d5 {[%clk 0:04:35.9]} 12. Nxf6+ {[%clk 0:04:36.6]}
12... Rxf6 {[%clk 0:04:33.7]} 13. Bg5 {[%clk 0:04:33.7]} 13... Qf8 {[%clk
0:04:28]} 14. Bxf6 {[%clk 0:04:30.8]} 14... Qxf6 {[%clk 0:04:26.7]} 15. cxd5
{[%clk 0:04:30.2]} 15... exd5 {[%clk 0:04:24.3]} 16. Bxd5+ {[%clk 0:04:29.3]}
16... Kh8 {[%clk 0:04:18.2]} 17. Re1 {[%clk 0:04:26.4]} 17... h6 {[%clk
0:04:10.4]} 18. Re8+ {[%clk 0:04:23.7]} 18... Kh7 {[%clk 0:04:08]} 19. Qd3+
{[%clk 0:04:21]} 19... Bf5 {[%clk 0:04:06.2]} 20. Be4 {[%clk 0:04:09.5]} 20...
g6 {[%clk 0:03:59.7]} 21. Bxf5 {[%clk 0:04:05.5]} 21... Qxf5 {[%clk 0:03:56.7]}
22. Rae1 {[%clk 0:04:01.6]} 22... Qxd3 {[%clk 0:03:54]} 23. R1e7# {[%clk
0:04:00.4]} 1-0

[Event "Live Chess"]
[Site "Chess.com"]
[Date "2024.06.01"]
[Round "-"]
[White "Tushinskiy"]
[Black "chessfiction"]
[Result "0-1"]
[WhiteElo "2259"]
[BlackElo "2375"]
[TimeControl "300"]
[EndTime "13:59:53 PDT"]
[Termination "chessfiction won by resignation"]

1. d4 {[%clk 0:04:56.7]} 1... d6 {[%clk 0:04:59.8]} 2. c3 {[%clk 0:04:56.6]}
2... Nf6 {[%clk 0:04:59.1]} 3. Nf3 {[%clk 0:04:56.5]} 3... g6 {[%clk 0:04:59]}
4. Bg5 {[%clk 0:04:55.3]} 4... Bg7 {[%clk 0:04:58.1]} 5. Bh4 {[%clk 0:04:55.2]}
5... O-O {[%clk 0:04:56.4]} 6. Nbd2 {[%clk 0:04:55.1]} 6... c5 {[%clk
0:04:55.8]} 7. e3 {[%clk 0:04:54.3]} 7... Nc6 {[%clk 0:04:53]} 8. Bd3 {[%clk
0:04:52.8]} 8... e5 {[%clk 0:04:51.8]} 9. dxe5 {[%clk 0:04:51.8]} 9... dxe5
{[%clk 0:04:51.7]} 10. Ne4 {[%clk 0:04:51.2]} 10... Bf5 {[%clk 0:04:45.4]} 11.
Nxf6+ {[%clk 0:04:28.6]} 11... Bxf6 {[%clk 0:04:43.9]} 12. Bxf5 {[%clk
0:04:27.8]} 12... Bxh4 {[%clk 0:04:39.5]} 13. Be4 {[%clk 0:04:24.8]} 13... Be7
{[%clk 0:04:29.1]} 14. Bxc6 {[%clk 0:04:22]} 14... bxc6 {[%clk 0:04:27.2]} 15.
Qxd8 {[%clk 0:04:21.2]} 15... Rfxd8 {[%clk 0:04:25.5]} 16. Nxe5 {[%clk
0:04:20.7]} 16... Bf6 {[%clk 0:04:20.2]} 17. Nxc6 {[%clk 0:04:17.8]} 17... Rd6
{[%clk 0:04:13.7]} 18. Na5 {[%clk 0:04:16.1]} 18... Rad8 {[%clk 0:04:07.8]} 19.
Nc4 {[%clk 0:04:14.5]} 19... Ra6 {[%clk 0:04:05.4]} 20. Ke2 {[%clk 0:04:12.8]}
20... Ra4 {[%clk 0:04:03.6]} 21. b3 {[%clk 0:04:10.2]} 21... Ra6 {[%clk
0:04:02.8]} 22. a4 {[%clk 0:04:08.6]} 22... Bxc3 {[%clk 0:04:01.4]} 23. Rad1
{[%clk 0:04:07.9]} 23... Rb8 {[%clk 0:03:59.1]} 24. Rb1 {[%clk 0:04:04.1]} 24...
Kg7 {[%clk 0:03:54.6]} 25. Rhd1 {[%clk 0:04:03.4]} 25... h5 {[%clk 0:03:43.7]}
26. Rd7 {[%clk 0:04:01.6]} 26... Rxa4 {[%clk 0:03:40.5]} 27. Nd6 {[%clk
0:03:55.4]} 27... Ra2+ {[%clk 0:03:29.6]} 28. Kd3 {[%clk 0:03:49.2]} 28... Bb4
{[%clk 0:03:20.1]} 29. Ne4 {[%clk 0:03:31.6]} 29... a5 {[%clk 0:03:06.3]} 30.
Rc1 {[%clk 0:03:17.4]} 30... Rb2 {[%clk 0:02:55.4]} 31. Kc4 {[%clk 0:03:15.1]}
31... Ba3 {[%clk 0:02:48.7]} 32. Rc3 {[%clk 0:03:12.5]} 32... Rb4+ {[%clk
0:02:37.8]} 33. Kd5 {[%clk 0:03:05]} 33... R4xb3 {[%clk 0:02:36.8]} 34. Rxb3
{[%clk 0:03:03.4]} 34... Rxb3 {[%clk 0:02:36.7]} 35. Nd6 {[%clk 0:03:02.4]}
35... Rd3+ {[%clk 0:02:31.7]} 36. Kc4 {[%clk 0:03:00.5]} 36... Rd2 {[%clk
0:02:26.4]} 37. Rxf7+ {[%clk 0:02:58.8]} 37... Kg8 {[%clk 0:02:25.7]} 38. Rd7
{[%clk 0:02:57.3]} 38... Rxf2 {[%clk 0:02:24.3]} 39. Ne4 {[%clk 0:02:50.8]}
39... Rxg2 {[%clk 0:02:16.8]} 40. Nf6+ {[%clk 0:02:49.5]} 40... Kf8 {[%clk
0:02:16.2]} 41. e4 {[%clk 0:02:46.7]} 41... Bb2 {[%clk 0:02:12.7]} 42. Nd5
{[%clk 0:02:43.4]} 42... Rxh2 {[%clk 0:02:09.5]} 43. Ra7 {[%clk 0:02:42.4]}
43... Rd2 {[%clk 0:02:02.1]} 44. e5 {[%clk 0:02:22.8]} 44... Bxe5 {[%clk
0:01:56.5]} 45. Rxa5 {[%clk 0:02:21.4]} 45... h4 {[%clk 0:01:49.8]} 46. Kxc5
{[%clk 0:02:13.4]} 46... h3 {[%clk 0:01:47.7]} 47. Ra3 {[%clk 0:02:08.5]} 47...
h2 {[%clk 0:01:44.6]} 48. Rh3 {[%clk 0:02:07.1]} 48... Rd1 {[%clk 0:01:43.9]}
0-1

[Event "Live Chess"]
[Site "Chess.com"]
[Date "2024.06.01"]
[Round "-"]
[White "agamilewska"]
[Black "nigelst"]
[Result "0-1"]
[WhiteElo "1757"]
[BlackElo "1670"]
[TimeControl "300"]
[EndTime "14:00:13 PDT"]
[Termination "nigelst won by checkmate"]

1. d4 {[%clk 0:04:43.2]} 1... Nf6 {[%clk 0:04:55.4]} 2. c4 {[%clk 0:04:42.6]}
2... e6 {[%clk 0:04:54.1]} 3. Nc3 {[%clk 0:04:42.2]} 3... Bb4 {[%clk 0:04:52.9]}
4. Nf3 {[%clk 0:04:41.8]} 4... c5 {[%clk 0:04:38]} 5. e3 {[%clk 0:04:39.3]} 5...
O-O {[%clk 0:04:33.7]} 6. Be2 {[%clk 0:04:38.1]} 6... d6 {[%clk 0:04:23.9]} 7.
O-O {[%clk 0:04:37.1]} 7... Bxc3 {[%clk 0:04:22.3]} 8. bxc3 {[%clk 0:04:36.1]}
8... Nbd7 {[%clk 0:04:19.8]} 9. Ba3 {[%clk 0:04:34]} 9... Re8 {[%clk 0:04:12.9]}
10. d5 {[%clk 0:04:21.6]} 10... e5 {[%clk 0:04:10.4]} 11. e4 {[%clk 0:04:20.2]}
11... Nxe4 {[%clk 0:04:01.4]} 12. Qd3 {[%clk 0:04:06.2]} 12... f5 {[%clk
0:03:48.8]} 13. Bd1 {[%clk 0:03:54.2]} 13... Qa5 {[%clk 0:03:31.6]} 14. Bb2
{[%clk 0:03:49]} 14... Qd8 {[%clk 0:03:12.2]} 15. Bc2 {[%clk 0:03:47.1]} 15...
g6 {[%clk 0:02:55.2]} 16. Nd2 {[%clk 0:03:34]} 16... Nxd2 {[%clk 0:02:48.7]} 17.
Qxd2 {[%clk 0:03:33.3]} 17... Nf6 {[%clk 0:02:45.8]} 18. f3 {[%clk 0:03:26.5]}
18... e4 {[%clk 0:02:39.3]} 19. fxe4 {[%clk 0:03:23.9]} 19... Nxe4 {[%clk
0:02:38]} 20. Bxe4 {[%clk 0:03:22.7]} 20... Rxe4 {[%clk 0:02:35.8]} 21. Qd3
{[%clk 0:03:17.6]} 21... Bd7 {[%clk 0:02:24.3]} 22. Rae1 {[%clk 0:03:13.2]}
22... Qe7 {[%clk 0:02:20.2]} 23. Rxe4 {[%clk 0:03:10.4]} 23... fxe4 {[%clk
0:02:18]} 24. Qe3 {[%clk 0:03:04.4]} 24... Rf8 {[%clk 0:02:12.6]} 25. Rxf8+
{[%clk 0:03:01.5]} 25... Kxf8 {[%clk 0:02:09.7]} 26. Bc1 {[%clk 0:02:56.7]}
26... Kg8 {[%clk 0:02:04.9]} 27. Kf2 {[%clk 0:02:45.6]} 27... Qf6+ {[%clk
0:02:02.6]} 28. Kg1 {[%clk 0:02:35.8]} 28... Qe5 {[%clk 0:01:46.8]} 29. h3
{[%clk 0:02:33.2]} 29... b6 {[%clk 0:01:40.9]} 30. Bd2 {[%clk 0:02:24.8]} 30...
Bc8 {[%clk 0:01:39.2]} 31. Qg5 {[%clk 0:02:21.1]} 31... Qxg5 {[%clk 0:01:28.1]}
32. Bxg5 {[%clk 0:02:21]} 32... Kg7 {[%clk 0:01:26.5]} 33. Be7 {[%clk
0:02:18.8]} 33... Ba6 {[%clk 0:01:17.6]} 34. Bxd6 {[%clk 0:02:16.8]} 34... Bxc4
{[%clk 0:01:16.4]} 35. Be5+ {[%clk 0:02:13.7]} 35... Kf7 {[%clk 0:01:14]} 36. d6
{[%clk 0:02:07.3]} 36... Ke6 {[%clk 0:01:12.5]} 37. Bf4 {[%clk 0:01:59.8]} 37...
Bxa2 {[%clk 0:01:09.9]} 38. Kf2 {[%clk 0:01:58.3]} 38... b5 {[%clk 0:01:06.8]}
39. Ke3 {[%clk 0:01:57]} 39... Bb1 {[%clk 0:01:05.4]} 40. g4 {[%clk 0:01:43]}
40... a5 {[%clk 0:01:03.9]} 41. Kd2 {[%clk 0:01:40.3]} 41... a4 {[%clk 0:00:59]}
42. Kc1 {[%clk 0:01:38.7]} 42... Bd3 {[%clk 0:00:57.5]} 43. Kb2 {[%clk
0:01:35.5]} 43... b4 {[%clk 0:00:53.9]} 44. cxb4 {[%clk 0:01:32.2]} 44... cxb4
{[%clk 0:00:52.8]} 45. h4 {[%clk 0:01:26]} 45... Bc4 {[%clk 0:00:47.3]} 46. h5
{[%clk 0:01:21.5]} 46... gxh5 {[%clk 0:00:42.7]} 47. gxh5 {[%clk 0:01:21.4]}
47... a3+ {[%clk 0:00:41.7]} 48. Kc2 {[%clk 0:01:13.5]} 48... b3+ {[%clk
0:00:39.2]} 49. Kb1 {[%clk 0:01:10.2]} 49... Bd3+ {[%clk 0:00:33.1]} 50. Kc1
{[%clk 0:00:59.4]} 50... b2+ {[%clk 0:00:32]} 51. Kd2 {[%clk 0:00:59.1]} 51...
b1=Q {[%clk 0:00:29.3]} 52. Ke3 {[%clk 0:00:59]} 52... Qe1+ {[%clk 0:00:27.3]}
53. Kd4 {[%clk 0:00:58.1]} 53... Qb4+ {[%clk 0:00:21.5]} 54. Ke3 {[%clk
0:00:56.8]} 54... a2 {[%clk 0:00:20.6]} 55. h6 {[%clk 0:00:55.3]} 55... a1=Q
{[%clk 0:00:18.1]} 56. Kf2 {[%clk 0:00:51.6]} 56... Qc5+ {[%clk 0:00:17.2]} 57.
Kg3 {[%clk 0:00:50.7]} 57... Qag1+ {[%clk 0:00:15.7]} 58. Kh4 {[%clk 0:00:49.9]}
58... Qcf2+ {[%clk 0:00:13.3]} 59. Kh5 {[%clk 0:00:48.3]} 59... Be2# {[%clk
0:00:12.4]} 0-1

[Event "Live Chess"]
[Site "Chess.com"]
[Date "2024.06.01"]
[Round "-"]
[White "Queensandpawns"]
[Black "matt1979"]
[Result "1-0"]
[WhiteElo "2382"]
[BlackElo "1374"]
[TimeControl "300"]
[EndTime "14:00:19 PDT"]
[Termination "Queensandpawns won by checkmate"]

1. e4 {[%clk 0:04:59]} 1... d6 {[%clk 0:04:58.2]} 2. d4 {[%clk 0:04:57.6]} 2...
Nf6 {[%clk 0:04:56.7]} 3. Nc3 {[%clk 0:04:57.5]} 3... Nbd7 {[%clk 0:04:54.1]} 4.
Nf3 {[%clk 0:04:54.4]} 4... e5 {[%clk 0:04:53.2]} 5. dxe5 {[%clk 0:04:53]} 5...
dxe5 {[%clk 0:04:51.3]} 6. Bc4 {[%clk 0:04:52.6]} 6... Bb4 {[%clk 0:04:49.1]} 7.
Ng5 {[%clk 0:04:50.5]} 7... O-O {[%clk 0:04:47]} 8. O-O {[%clk 0:04:48]} 8...
Bxc3 {[%clk 0:04:45.1]} 9. bxc3 {[%clk 0:04:47]} 9... h6 {[%clk 0:04:42.8]} 10.
Nf3 {[%clk 0:04:45.7]} 10... Nxe4 {[%clk 0:04:40.3]} 11. Re1 {[%clk 0:04:44]}
11... Nxc3 {[%clk 0:04:37.1]} 12. Qd3 {[%clk 0:04:42]} 12... e4 {[%clk
0:04:29.1]} 13. Qxc3 {[%clk 0:04:40.5]} 13... exf3 {[%clk 0:04:27.6]} 14. Bb2
{[%clk 0:04:40.4]} 14... Nf6 {[%clk 0:04:22.7]} 15. Rad1 {[%clk 0:04:37.4]}
15... Bd7 {[%clk 0:04:16.7]} 16. Qxf3 {[%clk 0:04:36.9]} 16... c6 {[%clk
0:03:53.2]} 17. Rd6 {[%clk 0:04:32.7]} 17... Qc7 {[%clk 0:03:43.6]} 18. Rxf6
{[%clk 0:04:28.5]} 18... g6 {[%clk 0:03:27.5]} 19. Rxg6+ {[%clk 0:04:25.2]}
19... Kh7 {[%clk 0:03:22.8]} 20. Qf6 {[%clk 0:04:25.1]} 20... Rg8 {[%clk
0:03:17.6]} 21. Rxh6# {[%clk 0:04:24]} 1-0

[Event "Live Chess"]
[Site "Chess.com"]
[Date "2024.06.01"]
[Round "-"]
[White "AndrewBak1"]
[Black "Silverback7829"]
[Result "1-0"]
[WhiteElo "1847"]
[BlackElo "959"]
[TimeControl "300"]
[EndTime "14:00:25 PDT"]
[Termination "AndrewBak1 won by checkmate"]

1. e4 {[%clk 0:04:55.6]} 1... e5 {[%clk 0:04:58.8]} 2. Nf3 {[%clk 0:04:54.5]}
2... Nc6 {[%clk 0:04:57.4]} 3. Bc4 {[%clk 0:04:54.1]} 3... d6 {[%clk 0:04:53.7]}
4. O-O {[%clk 0:04:51.7]} 4... Bg4 {[%clk 0:04:51.1]} 5. h3 {[%clk 0:04:50]}
5... Bxf3 {[%clk 0:04:49.3]} 6. Qxf3 {[%clk 0:04:48.2]} 6... Nf6 {[%clk
0:04:46.7]} 7. Re1 {[%clk 0:04:45.9]} 7... Nd4 {[%clk 0:04:41.5]} 8. Qd3 {[%clk
0:04:43.4]} 8... Nc6 {[%clk 0:04:31.3]} 9. Nc3 {[%clk 0:04:28]} 9... Nb4 {[%clk
0:04:27.8]} 10. Bb5+ {[%clk 0:04:18.2]} 10... Nd7 {[%clk 0:04:19.7]} 11. Qc4
{[%clk 0:04:08.8]} 11... Na6 {[%clk 0:04:08.5]} 12. Bxa6 {[%clk 0:04:00.8]}
12... bxa6 {[%clk 0:03:57.7]} 13. Qxa6 {[%clk 0:04:00.7]} 13... Nc5 {[%clk
0:03:51.4]} 14. Qc6+ {[%clk 0:03:57.1]} 14... Ke7 {[%clk 0:03:40.3]} 15. Nd5+
{[%clk 0:03:55.5]} 15... Ke6 {[%clk 0:03:35.7]} 16. Nxc7+ {[%clk 0:03:53.7]}
16... Ke7 {[%clk 0:03:22.4]} 17. Nxa8 {[%clk 0:03:42.7]} 17... g6 {[%clk
0:03:13.1]} 18. Nc7 {[%clk 0:03:38.7]} 18... Bh6 {[%clk 0:03:04.3]} 19. Nd5+
{[%clk 0:03:32.5]} 19... Ke6 {[%clk 0:02:58.1]} 20. d3 {[%clk 0:03:30.9]} 20...
Qa5 {[%clk 0:02:51.2]} 21. Bxh6 {[%clk 0:03:21.6]} 21... Qd2 {[%clk 0:02:40]}
22. Bxd2 {[%clk 0:03:18.7]} 22... f5 {[%clk 0:02:28.7]} 23. exf5+ {[%clk
0:03:12.7]} 23... gxf5 {[%clk 0:02:24]} 24. Bb4 {[%clk 0:03:12.2]} 24... Rg8
{[%clk 0:02:09.2]} 25. Bxc5 {[%clk 0:02:53]} 25... Rg5 {[%clk 0:01:58]} 26.
Qxd6+ {[%clk 0:02:50]} 26... Kf7 {[%clk 0:01:49]} 27. Qf6+ {[%clk 0:02:49.9]}
27... Ke8 {[%clk 0:01:43.1]} 28. Ne7 {[%clk 0:02:49.8]} 28... Kd7 {[%clk
0:01:31.8]} 29. Qd6+ {[%clk 0:02:48.1]} 29... Ke8 {[%clk 0:01:28.2]} 30. Nxf5
{[%clk 0:02:46.6]} 30... Rxf5 {[%clk 0:01:22.9]} 31. Qe7# {[%clk 0:02:45.6]} 1-0

[Event "Live Chess"]
[Site "Chess.com"]
[Date "2024.06.01"]
[Round "-"]
[White "educatedlad"]
[Black "Mangoalo"]
[Result "0-1"]
[WhiteElo "1723"]
[BlackElo "1064"]
[TimeControl "300"]
[EndTime "14:00:30 PDT"]
[Termination "Mangoalo won by checkmate"]

1. d4 {[%clk 0:04:49.2]} 1... Nf6 {[%clk 0:04:57.9]} 2. Nf3 {[%clk 0:04:47.7]}
2... e6 {[%clk 0:04:57.8]} 3. c4 {[%clk 0:04:45.9]} 3... Bb4+ {[%clk 0:04:57.2]}
4. Nc3 {[%clk 0:04:44.5]} 4... b5 {[%clk 0:04:54.6]} 5. a3 {[%clk 0:04:43.4]}
5... Bxc3+ {[%clk 0:04:53.1]} 6. bxc3 {[%clk 0:04:43.3]} 6... bxc4 {[%clk
0:04:52.9]} 7. e4 {[%clk 0:04:42.6]} 7... O-O {[%clk 0:04:50.1]} 8. e5 {[%clk
0:04:41]} 8... Ne8 {[%clk 0:04:48.7]} 9. Bxc4 {[%clk 0:04:39.8]} 9... d6 {[%clk
0:04:47.2]} 10. Bd3 {[%clk 0:04:39.7]} 10... dxe5 {[%clk 0:04:46.2]} 11. Nxe5
{[%clk 0:04:39.6]} 11... Nd7 {[%clk 0:04:43.8]} 12. Qh5 {[%clk 0:04:32.6]} 12...
g6 {[%clk 0:04:39.9]} 13. Qh6 {[%clk 0:04:27.4]} 13... Nxe5 {[%clk 0:04:31.8]}
14. dxe5 {[%clk 0:04:23.4]} 14... Qxd3 {[%clk 0:04:28.1]} 15. Bg5 {[%clk
0:04:21.3]} 15... Qxc3+ {[%clk 0:04:21.5]} 16. Ke2 {[%clk 0:04:19.2]} 16... Ba6+
{[%clk 0:04:18.8]} 17. Kd1 {[%clk 0:04:14.1]} 17... Qxa1+ {[%clk 0:04:13.5]} 18.
Kd2 {[%clk 0:04:12.1]} 18... Qxh1 {[%clk 0:04:08.2]} 19. Be7 {[%clk 0:04:11]}
19... Ng7 {[%clk 0:03:46.2]} 20. Bf6 {[%clk 0:04:07.9]} 20... Nh5 {[%clk
0:03:39.7]} 21. g4 {[%clk 0:04:04]} 21... Qd5+ {[%clk 0:03:33.9]} 22. Ke1 {[%clk
0:04:01.9]} 22... Qa5+ {[%clk 0:03:21.3]} 23. Kd1 {[%clk 0:03:59.3]} 23... Qa4+
{[%clk 0:03:18]} 24. Kd2 {[%clk 0:03:57.5]} 24... Qd4+ {[%clk 0:03:12]} 25. Ke1
{[%clk 0:03:54.5]} 25... Qc3+ {[%clk 0:03:07.9]} 26. Kd1 {[%clk 0:03:52.6]}
26... Qa1+ {[%clk 0:02:55.9]} 27. Kd2 {[%clk 0:03:51.5]} 27... Qd4+ {[%clk
0:02:49]} 28. Ke1 {[%clk 0:03:50]} 28... Rfd8 {[%clk 0:02:39.1]} 29. Bxd8 {[%clk
0:03:45.8]} 29... Rxd8 {[%clk 0:02:39]} 30. gxh5 {[%clk 0:03:43.3]} 30... Qd2+
{[%clk 0:02:37]} 31. Qxd2 {[%clk 0:03:39.4]} 31... Rxd2 {[%clk 0:02:36.9]} 32.
Kxd2 {[%clk 0:03:39.3]} 32... gxh5 {[%clk 0:02:35.7]} 33. Kc3 {[%clk 0:03:37.5]}
33... c6 {[%clk 0:02:26]} 34. Kb4 {[%clk 0:03:36.8]} 34... Kg7 {[%clk 0:02:21]}
35. Kc5 {[%clk 0:03:36.1]} 35... Bb5 {[%clk 0:02:18.4]} 36. f4 {[%clk 0:03:32]}
36... Kg6 {[%clk 0:02:15.9]} 37. Kb4 {[%clk 0:03:25.1]} 37... Kf5 {[%clk
0:02:14.6]} 38. a4 {[%clk 0:03:24.7]} 38... Bxa4 {[%clk 0:02:12.6]} 39. Kxa4
{[%clk 0:03:23.8]} 39... Kxf4 {[%clk 0:02:12.5]} 40. Kb4 {[%clk 0:03:22.1]}
40... Kxe5 {[%clk 0:02:12.4]} 41. Kc4 {[%clk 0:03:21.2]} 41... f5 {[%clk
0:02:12.3]} 42. Kd3 {[%clk 0:03:20.2]} 42... Kf4 {[%clk 0:02:08.8]} 43. Ke2
{[%clk 0:03:19.2]} 43... h4 {[%clk 0:02:06.4]} 44. h3 {[%clk 0:03:07.3]} 44...
a5 {[%clk 0:01:55.7]} 45. Kf2 {[%clk 0:03:04.7]} 45... a4 {[%clk 0:01:47]} 46.
Kg2 {[%clk 0:03:04]} 46... a3 {[%clk 0:01:45.4]} 47. Kf2 {[%clk 0:03:03.7]}
47... a2 {[%clk 0:01:45.3]} 48. Ke2 {[%clk 0:03:03.3]} 48... a1=Q {[%clk
0:01:43.6]} 49. Kd3 {[%clk 0:03:02.9]} 49... Qh1 {[%clk 0:01:33]} 50. Kc4 {[%clk
0:03:01.6]} 50... Qxh3 {[%clk 0:01:26.8]} 51. Kc5 {[%clk 0:03:00.9]} 51... Qf3
{[%clk 0:01:24]} 52. Kd6 {[%clk 0:03:00.2]} 52... h3 {[%clk 0:01:23.1]} 53. Ke7
{[%clk 0:02:59.7]} 53... h2 {[%clk 0:01:23]} 54. Kf6 {[%clk 0:02:59.3]} 54...
h1=Q {[%clk 0:01:21.7]} 55. Kg7 {[%clk 0:02:57.9]} 55... Qg4+ {[%clk 0:01:18.6]}
56. Kh8 {[%clk 0:02:56.7]} 56... Qgd1 {[%clk 0:01:12.6]} 57. Kg7 {[%clk
0:02:55.2]} 57... Qd6 {[%clk 0:01:10.8]} 58. Kh8 {[%clk 0:02:54.4]} 58... Qd8+
{[%clk 0:01:08.9]} 59. Kg7 {[%clk 0:02:53.2]} 59... Qe7+ {[%clk 0:01:06.1]} 60.
Kh8 {[%clk 0:02:52.3]} 60... Qf8# {[%clk 0:01:03.3]} 0-1